fUSD/lending_fUSD_20250930
["ID","MTS","AMOUNT","RATE_DAILY","PERIOD"]
[388502491,1759221048089,-500.0,0.00019996,2]
[388502492,1759221048103,-3484.65,0.00019996,2]
[388502493,1759221048113,-807.32,0.00019996,2]
[388502494,1759221048123,-500.0,0.00019996,2]
[388502495,1759221048133,-531.46,0.00019996,2]
[388502496,1759221048144,-937.02,0.00019996,2]
[388502497,1759221048153,-540.84,0.00019996,2]
[388502498,1759221048163,-5213.2,0.00019996,2]
[388502499,1759221048175,-2472.1,0.00019996,2]
[388502500,1759221048186,-500.0,0.00019996,2]
[388502501,1759221048196,-5319.22,0.00019996,2]
[388502502,1759221048206,-735.73,0.00019996,2]
[388502503,1759221048217,-696.07,0.00019996,2]
[388502504,1759221048227,-500.0,0.00019996,2]
[388502505,1759221048237,-812.39,0.00019996,2]
[388502506,1759221048246,-2865.5,0.00019996,2]
[388502507,1759221048256,-1827.1,0.00019996,2]
[388502508,1759221048266,-1142.37,0.00019996,2]
[388502509,1759221048276,-6044.08,0.00019996,2]
[388502510,1759221048286,-500.0,0.00019996,2]
[388502511,1759221048297,-3374.68,0.00019996,2]
[388502512,1759221048307,-500.0,0.00019996,2]
[388502513,1759221048318,-500.0,0.00019996,2]
[388502514,1759221048327,-500.0,0.00019996,2]
[388502515,1759221048337,-500.0,0.00019996,2]
[388502516,1759221048348,-400.0,0.00019996,2]
[388502517,1759221048358,-500.0,0.00019996,2]
[388502518,1759221048368,-2327.17,0.00019996,2]
[388502519,1759221048377,-500.0,0.00019996,2]
[388502520,1759221048388,-500.0,0.00019996,2]
[388502521,1759221048398,-5338.75,0.00019996,2]
[388502522,1759221048408,-500.0,0.00019996,2]
[388502523,1759221048417,-500.0,0.00019996,2]
[388502524,1759221048428,-3536.75,0.00019996,2]
[388502525,1759221048438,-645.94,0.00019996,2]
[388502526,1759221048448,-1448.43,0.00019996,2]
[388502527,1759221048457,-500.0,0.00019996,2]
[388502528,1759221048467,-527.61,0.00019996,2]
[388502529,1759221048477,-547.25,0.00019996,2]
[388502530,1759221048486,-500.0,0.00019996,2]
[388502531,1759221048495,-5908.64,0.00019996,2]
[388502532,1759221048506,-500.0,0.00019996,2]
[388502533,1759221048517,-500.0,0.00019996,2]
[388502534,1759221048527,-441.97946999,0.00019996,2]
[388502535,1759221048538,-1976.89,0.00019996,2]
[388502536,1759221048548,-2856.2,0.00019996,2]
[388502537,1759221048558,-1028.94,0.00019996,2]
[388502538,1759221048567,-7888.51,0.00019996,2]
[388502539,1759221048577,-1665.52,0.00019996,2]
[388502540,1759221048586,-500.0,0.00019996,2]
[388502541,1759221048595,-566.17,0.00019996,2]
[388502542,1759221048605,-500.0,0.00019996,2]
[388502543,1759221048615,-9019.3,0.00019996,2]
[388502544,1759221048625,-893.98,0.00019996,2]
[388502545,1759221048634,-3743.79,0.00019996,2]
[388502546,1759221048646,-1248.48,0.00019996,2]
[388502547,1759221048655,-2708.1,0.00019996,2]
[388502548,1759221048665,-2316.97,0.00019996,2]
[388502549,1759221048675,-9491.56,0.00019996,2]
[388502550,1759221048685,-508.57465227,0.00019996,2]
[388502551,1759221048696,-500.0,0.00019996,2]
[388502552,1759221048706,-1521.48,0.00019996,2]
[388502553,1759221048716,-500.0,0.00019996,2]
[388502554,1759221048726,-4620.06,0.00019996,2]
[388502555,1759221048736,-500.0,0.00019996,2]
[388502556,1759221048745,-500.0,0.00019996,2]
[388502557,1759221048756,-1019.56,0.00019996,2]
[388502558,1759221048766,-8170.67,0.00019996,2]
[388502559,1759221048776,-652.85,0.00019996,2]
[388502560,1759221048785,-500.0,0.00019996,2]
[388502561,1759221048795,-500.0,0.00019996,2]
[388502562,1759221048806,-500.0,0.00019996,2]
[388502563,1759221048815,-2025.59,0.00019996,2]
[388502564,1759221048825,-500.0,0.00019996,2]
[388502565,1759221048835,-1063.48,0.00019996,2]
[388502566,1759221048845,-1251.0,0.00019997,2]
[388502567,1759221048854,-500.0,0.00019997,2]
[388502568,1759221048864,-447.14386621,0.00019997,2]
[388502569,1759221048874,-500.0,0.00019997,2]
[388502570,1759221048884,-500.0,0.00019997,2]
[388502571,1759221048894,-500.0,0.00019997,2]
[388502572,1759221048903,-500.0,0.00019997,2]
[388502573,1759221048913,-590.52,0.00019997,2]
[388502574,1759221048922,-500.0,0.00019997,2]
[388502575,1759221048932,-500.0,0.00019997,2]
[388502576,1759221048942,-500.0,0.00019997,2]
[388502577,1759221048951,-500.0,0.00019997,2]
[388502578,1759221048961,-500.0,0.00019997,2]
[388502579,1759221048971,-500.0,0.00019997,2]
[388502580,1759221048981,-500.0,0.00019997,2]
[388502581,1759221048990,-500.0,0.00019997,2]
[388502582,1759221048999,-500.0,0.00019997,2]
[388502583,1759221049008,-500.0,0.00019997,2]
[388502584,1759221049018,-500.0,0.00019997,2]
[388502585,1759221049028,-500.0,0.00019997,2]
[388502586,1759221049037,-2004.98,0.00019997,2]
[388502587,1759221049047,-1187.44,0.00019997,2]
[388502588,1759221049058,-1989.6,0.00019997,2]
[388502589,1759221049067,-1576.55,0.00019997,2]
[388502590,1759221049078,-500.0,0.00019997,2]
[388502591,1759221049087,-500.0,0.00019997,2]
[388502592,1759221049097,-4287.2,0.00019997,2]
[388502593,1759221049108,-4040.41,0.00019997,2]
[388502594,1759221049121,-5230.56,0.00019997,2]
[388502595,1759221049131,-6159.82,0.00019997,2]
[388502596,1759221049141,-1025.7,0.00019997,2]
[388502597,1759221049152,-2470.16,0.00019997,2]
[388502598,1759221049161,-5768.36,0.00019997,2]
[388502599,1759221049171,-3998.9,0.00019997,2]
[388502600,1759221049181,-3421.4,0.00019997,2]
[388502601,1759221049191,-4197.67,0.00019997,2]
[388502602,1759221049201,-4328.1,0.00019997,2]
[388502603,1759221049211,-4502.95,0.00019997,2]
[388502604,1759221049220,-5075.64,0.00019997,2]
[388502605,1759221049230,-4551.32,0.00019997,2]
[388502606,1759221049240,-2130.58,0.00019997,2]
[388502607,1759221049249,-3955.79,0.00019997,2]
[388502608,1759221049259,-5092.07,0.00019997,2]
[388502609,1759221049268,-3685.95,0.00019997,2]
[388502610,1759221049278,-2233.25,0.00019997,2]
[388502611,1759221049288,-4564.69,0.00019997,2]
[388502612,1759221049298,-5329.69,0.00019997,2]
[388502613,1759221049308,-4646.8,0.00019997,2]
[388502614,1759221049317,-3199.9,0.00019997,2]
[388502615,1759221049327,-500.0,0.00019997,2]
[388502616,1759221049336,-3151.74,0.00019997,2]
[388502617,1759221049347,-2410.1,0.00019997,2]
[388502618,1759221049357,-3847.51,0.00019997,2]
[388502619,1759221049366,-3901.01,0.00019997,2]
[388502620,1759221049376,-4983.06,0.00019997,2]
[388502621,1759221049390,-3774.35,0.00019997,2]
[388502622,1759221049400,-5061.34,0.00019997,2]
[388502623,1759221049410,-1529.83,0.00019997,2]
[388502624,1759221049420,-5936.02,0.00019997,2]
[388502625,1759221049429,-5510.42,0.00019997,2]
[388502626,1759221049439,-3310.68,0.00019997,2]
[388502627,1759221049449,-4084.36,0.00019997,2]
[388502628,1759221049459,-2007.16,0.00019997,2]
[388502629,1759221049468,-3800.42,0.00019997,2]
[388502630,1759221049478,-5728.95,0.00019997,2]
[388502631,1759221049488,-897.45,0.00019997,2]
[388502632,1759221049498,-500.0,0.00019997,2]
[388502633,1759221049508,-5176.94,0.00019997,2]
[388502634,1759221049518,-1969.15,0.00019997,2]
[388502635,1759221049527,-4519.34,0.00019997,2]
[388502636,1759221049537,-500.0,0.00019997,2]
[388502637,1759221049547,-500.0,0.00019997,2]
[388502639,1759221049557,-1518.8,0.00019997,2]
[388502640,1759221049567,-2390.35,0.00019997,2]
[388502641,1759221049576,-593.0,0.00019997,2]
[388502642,1759221049585,-2168.71,0.00019997,2]
[388502643,1759221049595,-888.7,0.00019997,2]
[388502644,1759221049605,-936.47,0.00019997,2]
[388502645,1759221049615,-2150.93,0.00019997,2]
[388502646,1759221049625,-4892.58,0.00019997,2]
[388502647,1759221049634,-500.0,0.00019997,2]
[388502648,1759221049644,-1775.74,0.00019997,2]
[388502649,1759221049654,-3719.9,0.00019997,2]
[388502650,1759221049665,-500.0,0.00019997,2]
[388502651,1759221049675,-562.16,0.00019997,2]
[388502652,1759221049684,-2500.33,0.00019997,2]
[388502653,1759221049694,-1455.48,0.00019997,2]
[388502654,1759221049703,-3767.13,0.00019997,2]
[388502655,1759221049713,-500.0,0.00019997,2]
[388502656,1759221049723,-2490.31,0.00019997,2]
[388502657,1759221049732,-500.0,0.00019997,2]
[388502658,1759221049743,-4183.19,0.00019997,2]
[388502659,1759221049752,-974.72,0.00019997,2]
[388502660,1759221049762,-3657.43,0.00019997,2]
[388502661,1759221049774,-5295.69,0.00019997,2]
[388502662,1759221049784,-2443.83,0.00019997,2]
[388502663,1759221049795,-3723.5,0.00019997,2]
[388502664,1759221049804,-3991.8,0.00019997,2]
[388502665,1759221049815,-4644.0,0.00019997,2]
[388502666,1759221049824,-1638.38,0.00019997,2]
[388502667,1759221049835,-927.41,0.00019997,2]
[388502668,1759221049845,-3652.78,0.00019997,2]
[388502669,1759221049855,-1179.82,0.00019997,2]
[388502670,1759221049865,-3785.88,0.00019997,2]
[388502671,1759221049876,-558.7012919,0.00019997,2]
[388502672,1759221049886,-3630.63,0.00019997,2]
[388502673,1759221049896,-2846.86,0.00019997,2]
[388502674,1759221049906,-5889.3,0.00019997,2]
[388502675,1759221049915,-500.0,0.00019997,2]
[388502676,1759221049925,-500.0,0.00019997,2]
[388502677,1759221049935,-2035.98,0.00019997,2]
[388502678,1759221049945,-1019.0,0.00019997,2]
[388502679,1759221050501,-3850.72,0.00019997,2]
[388502680,1759221050556,-3998.35,0.00019997,2]
[388502681,1759221050566,-1686.71,0.00019997,2]
[388502682,1759221050576,-3227.15,0.00019997,2]
[388502683,1759221050586,-3044.63,0.00019997,2]
[388502684,1759221050596,-5246.07,0.00019997,2]
[388502685,1759221050606,-4898.18,0.00019997,2]
[388502686,1759221050615,-5969.52,0.00019997,2]
[388502687,1759221050625,-1121.66,0.00019997,2]
[388502688,1759221050635,-500.0,0.00019997,2]
[388502689,1759221050644,-500.0,0.00019997,2]
[388502690,1759221050655,-2934.83,0.00019997,2]
[388502691,1759221050665,-1523.19,0.00019997,2]
[388502692,1759221050675,-500.0,0.00019997,2]
[388502693,1759221050685,-4057.8,0.00019997,2]
[388502694,1759221050695,-500.0,0.00019997,2]
[388502695,1759221050706,-3049.58,0.00019998,2]
[388502696,1759221050716,-510.42,0.00019998,2]
[388502697,1759221050726,-500.0,0.00019998,2]
[388502698,1759221050736,-500.0,0.00019998,2]
[388502699,1759221050746,-500.0,0.00019998,2]
[388502700,1759221050756,-1595.62,0.00019998,2]
[388502701,1759221050767,-400.70176072,0.00019998,2]
[388502702,1759221050776,-500.0,0.00019998,2]
[388502703,1759221050788,-500.0,0.00019998,2]
[388502704,1759221050798,-500.0,0.00019998,2]
[388502705,1759221050808,-500.0,0.00019998,2]
[388502706,1759221050818,-500.0,0.00019998,2]
[388502707,1759221050835,-1086.82,0.00019998,2]
[388502708,1759221050846,-500.0,0.00019998,2]
[388502709,1759221050857,-500.0,0.00019998,2]
[388502710,1759221050868,-500.0,0.00019998,2]
[388502711,1759221050880,-928.77,0.00019998,2]
[388502712,1759221050891,-194.77219935,0.00019998,2]
[388502713,1759221050902,-1266.42,0.00019998,2]
[388502714,1759221050913,-500.0,0.00019998,2]
[388502715,1759221050924,-500.0,0.00019998,2]
[388502716,1759221050935,-500.0,0.00019998,2]
[388502717,1759221050947,-500.0,0.00019998,2]
[388502718,1759221050958,-500.0,0.00019998,2]
[388502719,1759221050969,-500.0,0.00019998,2]
[388502720,1759221050980,-1576.55,0.00019998,2]
[388502721,1759221050991,-3421.4,0.00019998,2]
[388502722,1759221051002,-3901.01,0.00019998,2]
[388502723,1759221051012,-500.0,0.00019998,2]
[388502724,1759221051022,-500.0,0.00019998,2]
[388502725,1759221051033,-2025.59,0.00019998,2]
[388502726,1759221051044,-2025.59,0.00019998,2]
[388502727,1759221051055,-150.28,0.00019999,2]
[388502728,1759221051066,-152.05,0.00019999,2]
[388502729,1759221051076,-500.0,0.00019999,2]
[388502730,1759221051087,-160.46093889,0.00019999,2]
[388502731,1759221051098,-1020.22,0.00019999,2]
[388502732,1759221051113,-500.0,0.00019999,2]
[388502733,1759221051124,-1311.7,0.00019999,2]
[388502734,1759221051135,-637.56,0.00019999,2]
[388502735,1759221051147,-500.0,0.00019999,2]
[388502736,1759221051158,-500.0,0.00019999,2]
[388502737,1759221051169,-500.0,0.00019999,2]
[388502738,1759221051180,-500.0,0.00019999,2]
[388502739,1759221051192,-500.0,0.00019999,2]
[388502740,1759221051203,-500.0,0.00019999,2]
[388502741,1759221051220,-500.0,0.00019999,2]
[388502742,1759221051232,-500.0,0.00019999,2]
[388502743,1759221051243,-1239.52,0.00019999,2]
[388502744,1759221051254,-500.0,0.00019999,2]
[388502745,1759221051265,-717.94,0.00019999,2]
[388502746,1759221051276,-500.0,0.00019999,2]
[388502747,1759221051287,-500.0,0.00019999,2]
[388502748,1759221051298,-500.0,0.00019999,2]
[388502749,1759221051310,-500.0,0.00019999,2]
[388502750,1759221051320,-1094.61,0.00019999,2]
[388502751,1759221051332,-3517.7,0.00019999,2]
[388502752,1759221051343,-1224.61,0.00019999,2]
[388502753,1759221051354,-500.0,0.00019999,2]
[388502754,1759221051367,-500.0,0.00019999,2]
[388502755,1759221051377,-500.0,0.00019999,2]
[388502756,1759221051388,-500.0,0.00019999,2]
[388502757,1759221051400,-500.0,0.00019999,2]
[388502758,1759221051411,-500.0,0.00019999,2]
[388502759,1759221051423,-500.0,0.00019999,2]
[388502760,1759221051433,-735.77,0.00019999,2]
[388502761,1759221051444,-2420.89,0.00019999,2]
[388502762,1759221051456,-500.0,0.00019999,2]
[388502763,1759221051467,-500.0,0.00019999,2]
[388502764,1759221051478,-2207.77,0.00019999,2]
[388502765,1759221051488,-500.0,0.00019999,2]
[388502766,1759221051499,-400.96172729,0.00019999,2]
[388502767,1759221051511,-805.61,0.00019999,2]
[388502768,1759221051522,-500.0,0.00019999,2]
[388502769,1759221051532,-1647.6,0.00019999,2]
[388502770,1759221051543,-500.0,0.00019999,2]
[388502771,1759221051554,-824.02,0.00019999,2]
[388502772,1759221051566,-500.0,0.00019999,2]
[388502773,1759221051576,-500.0,0.00019999,2]
[388502774,1759221051587,-500.0,0.00019999,2]
[388502775,1759221051597,-500.0,0.00019999,2]
[388502776,1759221051609,-633.84,0.00019999,2]
[388502777,1759221051619,-789.74,0.00019999,2]
[388502778,1759221051630,-400.28502965,0.00019999,2]
[388502779,1759221051642,-500.0,0.00019999,2]
[388502780,1759221051654,-1230.84,0.00019999,2]
[388502781,1759221051665,-500.0,0.00019999,2]
[388502782,1759221051676,-500.0,0.00019999,2]
[388502783,1759221051687,-1647.58,0.00019999,2]
[388502784,1759221051698,-500.0,0.00019999,2]
[388502785,1759221051709,-500.0,0.00019999,2]
[388502786,1759221051720,-647.37,0.00019999,2]
[388502787,1759221051731,-500.0,0.00019999,2]
[388502788,1759221051743,-1404.13,0.00019999,2]
[388502789,1759221051753,-500.0,0.00019999,2]
[388502790,1759221051765,-500.0,0.00019999,2]
[388502791,1759221051775,-500.0,0.00019999,2]
[388502792,1759221051786,-1806.16,0.00019999,2]
[388502793,1759221051798,-500.0,0.00019999,2]
[388502794,1759221051809,-500.0,0.00019999,2]
[388502795,1759221051820,-3505.57,0.00019999,2]
[388502796,1759221051831,-567.3,0.00019999,2]
[388502797,1759221051841,-518.07,0.00019999,2]
[388502798,1759221051853,-500.0,0.00019999,2]
[388502799,1759221051864,-1850.54,0.00019999,2]
[388502800,1759221051874,-500.0,0.00019999,2]
[388502801,1759221051885,-516.88,0.00019999,2]
[388502802,1759221051895,-1130.79,0.00019999,2]
[388502803,1759221051906,-3157.49,0.00019999,2]
[388502804,1759221051918,-2922.34,0.00019999,2]
[388502805,1759221051929,-500.0,0.00019999,2]
[388502806,1759221051939,-683.33,0.00019999,2]
[388502807,1759221051950,-500.0,0.00019999,2]
[388502808,1759221051960,-500.0,0.00019999,2]
[388502809,1759221051971,-500.0,0.00019999,2]
[388502810,1759221051982,-500.0,0.00019999,2]
[388502811,1759221051992,-3146.22,0.00019999,2]
[388502812,1759221052003,-500.0,0.00019999,2]
[388502813,1759221052014,-2052.98,0.00019999,2]
[388502814,1759221052024,-1630.05,0.00019999,2]
[388502815,1759221052035,-1611.78,0.00019999,2]
[388502816,1759221052046,-1077.07,0.00019999,2]
[388502817,1759221052056,-1736.67,0.00019999,2]
[388502818,1759221052066,-3261.32,0.00019999,2]
[388502819,1759221052077,-500.0,0.00019999,2]
[388502820,1759221052088,-3968.26,0.00019999,2]
[388502821,1759221052098,-500.0,0.00019999,2]
[388502822,1759221052113,-500.0,0.00019999,2]
[388502823,1759221052124,-500.0,0.00019999,2]
[388502824,1759221052135,-738.39,0.00019999,2]
[388502825,1759221052146,-500.0,0.00019999,2]
[388502826,1759221052157,-500.0,0.00019999,2]
[388502827,1759221052170,-418.31960204,0.00019999,2]
[388502828,1759221052181,-2132.44,0.00019999,2]
[388502829,1759221052193,-832.55,0.00019999,2]
[388502830,1759221052204,-500.0,0.00019999,2]
[388502831,1759221052215,-500.0,0.00019999,2]
[388502832,1759221052226,-500.0,0.00019999,2]
[388502833,1759221052237,-500.0,0.00019999,2]
[388502834,1759221052247,-500.0,0.00019999,2]
[388502835,1759221052258,-1076.06,0.00019999,2]
[388502836,1759221052268,-1762.93,0.00019999,2]
[388502837,1759221052279,-864.84,0.00019999,2]
[388502838,1759221052290,-400.00493332,0.00019999,2]
[388502839,1759221052300,-500.0,0.00019999,2]
[388502840,1759221052311,-1438.68,0.00019999,2]
[388502841,1759221052322,-617.73637133,0.00019999,2]
[388502842,1759221052332,-531.53,0.00019999,2]
[388502843,1759221052342,-693.36,0.00019999,2]
[388502844,1759221052352,-500.0,0.00019999,2]
[388502845,1759221052363,-1031.4,0.00019999,2]
[388502846,1759221052375,-1514.03,0.00019999,2]
[388502847,1759221052386,-979.05,0.00019999,2]
[388502848,1759221052396,-1362.29,0.00019999,2]
[388502849,1759221052407,-500.0,0.00019999,2]
[388502850,1759221052418,-5756.45,0.00019999,2]
[388502851,1759221052429,-500.0,0.00019999,2]
[388502852,1759221052440,-500.0,0.00019999,2]
[388502853,1759221052450,-500.0,0.00019999,2]
[388502854,1759221052460,-1346.86,0.00019999,2]
[388502855,1759221052471,-500.0,0.00019999,2]
[388502856,1759221052481,-500.0,0.00019999,2]
[388502857,1759221052492,-3450.25,0.00019999,2]
[388502858,1759221052502,-500.0,0.00019999,2]
[388502859,1759221052513,-500.0,0.00019999,2]
[388502860,1759221052523,-500.0,0.00019999,2]
[388502861,1759221052534,-500.0,0.00019999,2]
[388502862,1759221052545,-500.0,0.00019999,2]
[388502863,1759221052555,-500.0,0.00019999,2]
[388502864,1759221052566,-500.0,0.00019999,2]
[388502865,1759221052576,-2983.8,0.00019999,2]
[388502866,1759221052588,-5459.84,0.00019999,2]
[388502867,1759221052598,-500.0,0.00019999,2]
[388502868,1759221052609,-500.0,0.00019999,2]
[388502869,1759221052619,-500.0,0.00019999,2]
[388502870,1759221052630,-3411.51,0.00019999,2]
[388502871,1759221052640,-975.51,0.00019999,2]
[388502872,1759221052651,-500.0,0.00019999,2]
[388502873,1759221052661,-2364.5,0.00019999,2]
[388502874,1759221052672,-500.0,0.00019999,2]
[388502875,1759221052683,-485.4165663,0.00019999,2]
[388502876,1759221052693,-400.24940698,0.00019999,2]
[388502877,1759221052704,-500.0,0.00019999,2]
[388502878,1759221052715,-4028.68,0.00019999,2]
[388502879,1759221052726,-500.0,0.00019999,2]
[388502880,1759221052736,-2254.25,0.00019999,2]
[388502881,1759221052746,-500.0,0.00019999,2]
[388502882,1759221052756,-561.56,0.00019999,2]
[388502883,1759221052767,-500.0,0.00019999,2]
[388502884,1759221052778,-907.0,0.00019999,2]
[388502885,1759221052788,-576.02,0.00019999,2]
[388502886,1759221052797,-500.0,0.00019999,2]
[388502887,1759221052807,-500.0,0.00019999,2]
[388502888,1759221052818,-500.0,0.00019999,2]
[388502889,1759221052828,-500.0,0.00019999,2]
[388502890,1759221052839,-500.0,0.00019999,2]
[388502891,1759221052849,-1104.06,0.00019999,2]
[388502892,1759221052859,-500.0,0.00019999,2]
[388502893,1759221052870,-926.81,0.00019999,2]
[388502894,1759221052880,-3522.22,0.00019999,2]
[388502895,1759221052891,-500.0,0.00019999,2]
[388502896,1759221052902,-500.0,0.00019999,2]
[388502897,1759221052912,-1859.75,0.00019999,2]
[388502898,1759221052922,-500.0,0.00019999,2]
[388502899,1759221052932,-500.0,0.00019999,2]
[388502900,1759221052943,-500.0,0.00019999,2]
[388502901,1759221052952,-2816.89,0.00019999,2]
[388502902,1759221052962,-1052.75,0.00019999,2]
[388502903,1759221052972,-500.0,0.00019999,2]
[388502904,1759221052983,-500.0,0.00019999,2]
[388502905,1759221052992,-500.0,0.00019999,2]
[388502906,1759221053002,-706.29,0.00019999,2]
[388502907,1759221053012,-500.0,0.00019999,2]
[388502908,1759221053022,-548.28,0.00019999,2]
[388502909,1759221053034,-500.0,0.00019999,2]
[388502910,1759221053045,-500.0,0.00019999,2]
[388502911,1759221053055,-540.47,0.00019999,2]
[388502912,1759221053066,-500.0,0.00019999,2]
[388502913,1759221053077,-500.0,0.00019999,2]
[388502914,1759221053087,-500.0,0.00019999,2]
[388502915,1759221053097,-500.0,0.00019999,2]
[388502916,1759221053109,-3382.32,0.00019999,2]
[388502917,1759221053121,-565.46,0.00019999,2]
[388502918,1759221053132,-500.0,0.00019999,2]
[388502919,1759221053143,-500.0,0.00019999,2]
[388502920,1759221053385,-500.0,0.00019999,2]
[388502921,1759221053396,-500.0,0.00019999,2]
[388502922,1759221053406,-500.0,0.00019999,2]
[388502923,1759221053416,-969.74,0.00019999,2]
[388502924,1759221053426,-3649.23,0.00019999,2]
[388502925,1759221053435,-2119.27,0.00019999,2]
[388502926,1759221053445,-1106.14,0.00019999,2]
[388502927,1759221053455,-500.0,0.00019999,2]
[388502928,1759221053465,-500.0,0.00019999,2]
[388502929,1759221053475,-3370.05,0.00019999,2]
[388502930,1759221053484,-500.0,0.00019999,2]
[388502931,1759221053494,-500.0,0.00019999,2]
[388502932,1759221053504,-500.0,0.00019999,2]
[388502933,1759221053514,-1164.41,0.00019999,2]
[388502934,1759221053524,-1096.58,0.00019999,2]
[388502935,1759221053535,-500.0,0.00019999,2]
[388502936,1759221053545,-4203.1,0.00019999,2]
[388502937,1759221053556,-890.05,0.00019999,2]
[388502938,1759221053566,-500.0,0.00019999,2]
[388502939,1759221053575,-500.0,0.00019999,2]
[388502940,1759221053586,-500.0,0.00019999,2]
[388502941,1759221053596,-500.0,0.00019999,2]
[388502942,1759221053605,-505.53,0.00019999,2]
[388502943,1759221053616,-2929.51,0.00019999,2]
[388502944,1759221053626,-500.0,0.00019999,2]
[388502945,1759221053636,-500.0,0.00019999,2]
[388502946,1759221053646,-500.0,0.00019999,2]
[388502947,1759221053656,-500.0,0.00019999,2]
[388502948,1759221053665,-500.0,0.00019999,2]
[388502949,1759221053675,-593.78,0.00019999,2]
[388502950,1759221053686,-2049.75,0.00019999,2]
[388502951,1759221053696,-500.0,0.00019999,2]
[388502952,1759221053706,-500.0,0.00019999,2]
[388502953,1759221053715,-8332.54,0.00019999,2]
[388502954,1759221053726,-1137.75,0.00019999,2]
[388502955,1759221053735,-500.0,0.00019999,2]
[388502956,1759221053745,-2319.09,0.00019999,2]
[388502957,1759221053755,-500.0,0.00019999,2]
[388502958,1759221053764,-500.0,0.00019999,2]
[388502959,1759221053774,-500.0,0.00019999,2]
[388502960,1759221053784,-698.26,0.00019999,2]
[388502961,1759221053795,-2487.27,0.00019999,2]
[388502962,1759221053805,-811.98,0.00019999,2]
[388502963,1759221053815,-1646.77,0.00019999,2]
[388502964,1759221053825,-500.0,0.00019999,2]
[388502965,1759221053834,-500.0,0.00019999,2]
[388502966,1759221053844,-500.0,0.00019999,2]
[388502967,1759221053853,-3107.18,0.00019999,2]
[388502968,1759221053863,-500.0,0.00019999,2]
[388502969,1759221053872,-1141.85,0.00019999,2]
[388502970,1759221053882,-401.58243501,0.00019999,2]
[388502971,1759221053892,-500.0,0.00019999,2]
[388502972,1759221053901,-500.0,0.00019999,2]
[388502973,1759221053911,-500.0,0.00019999,2]
[388502974,1759221053920,-500.0,0.00019999,2]
[388502975,1759221053930,-3176.02,0.00019999,2]
[388502976,1759221053939,-500.0,0.00019999,2]
[388502977,1759221053949,-500.0,0.00019999,2]
[388502978,1759221053959,-500.0,0.00019999,2]
[388502979,1759221053969,-1068.71,0.00019999,2]
[388502980,1759221053979,-1291.94,0.00019999,2]
[388502981,1759221053989,-500.0,0.00019999,2]
[388502982,1759221053999,-807.18,0.00019999,2]
[388502983,1759221054009,-1501.31,0.00019999,2]
[388502984,1759221054019,-3032.11,0.00019999,2]
[388502985,1759221054029,-1001.41,0.00019999,2]
[388502986,1759221054038,-403.35435663,0.00019999,2]
[388502987,1759221054048,-2406.29,0.00019999,2]
[388502988,1759221054059,-553.25,0.00019999,2]
[388502989,1759221054069,-1278.51,0.00019999,2]
[388502990,1759221054080,-1058.43,0.00019999,2]
[388502991,1759221054090,-1576.55,0.00019999,2]